[Event "Titled Tuesday Blitz June 21 Late 2022"]
[White "D`Arruda, Ricardo D."]
[Black "Prieto Aranguren, Alain"]
[WhiteFideId "100692"]
[BlackFideId "2268906"]
[WhiteElo "2491"]
[BlackElo "2224"]
[Result "1-0"]
[Round "10"]
[TimeControl "180+1"]
[Date "2022.06.22"]
[WhiteClock "0:00:57"]
[BlackClock "0:00:07"]

1. d4 {[%clk 0:02:43]}  d5 {[%clk 0:02:58]} 2. Nf3 {[%clk 0:02:42]}  c6 {[%clk 0:02:58]} 3. g3 {[%clk 0:02:43]}  g6 {[%clk 0:02:56]} 4. Bg2 {[%clk 0:02:43]}  Bg7 {[%clk 0:02:57]} 5. O-O {[%clk 0:02:44]}  Nf6 {[%clk 0:02:57]} 6. Nbd2 {[%clk 0:02:41]}  O-O {[%clk 0:02:57]} 7. Ne5 {[%clk 0:02:41]}  Nbd7 {[%clk 0:02:56]} 8. Ndf3 {[%clk 0:02:41]}  Ne4 {[%clk 0:02:56]} 9. Nxd7 {[%clk 0:02:40]}  Bxd7 {[%clk 0:02:55]} 10. c3 {[%clk 0:02:40]}  Qc8 {[%clk 0:02:53]} 11. Re1 {[%clk 0:02:38]}  Bh3 {[%clk 0:02:52]} 12. Bh1 {[%clk 0:02:38]}  a5 {[%clk 0:02:38]} 13. Ne5 {[%clk 0:02:37]}  a4 {[%clk 0:02:36]} 14. f3 {[%clk 0:02:35]}  Nd6 {[%clk 0:02:24]} 15. e4 {[%clk 0:02:28]}  a3 {[%clk 0:02:20]} 16. b3 {[%clk 0:02:25]}  c5 {[%clk 0:02:17]} 17. exd5 {[%clk 0:02:09]}  cxd4 {[%clk 0:02:17]} 18. cxd4 {[%clk 0:02:08]}  Qc3 {[%clk 0:02:05]} 19. Be3 {[%clk 0:02:03]}  Nf5 {[%clk 0:02:03]} 20. Bf2 {[%clk 0:02:03]}  Rac8 {[%clk 0:01:50]} 21. g4 {[%clk 0:01:57]}  Nd6 {[%clk 0:01:39]} 22. Nd3 {[%clk 0:01:28]}  Bxd4 {[%clk 0:01:34]} 23. Bxd4 {[%clk 0:01:27]}  Qxd4+ {[%clk 0:01:33]} 24. Nf2 {[%clk 0:01:28]}  Qb6 {[%clk 0:01:26]} 25. Qd2 {[%clk 0:01:27]}  f5 {[%clk 0:01:16]} 26. Qe3 {[%clk 0:01:25]}  Qxe3 {[%clk 0:00:43]} 27. Rxe3 {[%clk 0:01:26]}  fxg4 {[%clk 0:00:37]} 28. fxg4 {[%clk 0:01:27]}  Rxf2 {[%clk 0:00:29]} 29. Kxf2 {[%clk 0:01:28]}  Bxg4 {[%clk 0:00:29]} 30. Bf3 {[%clk 0:01:21]}  Bf5 {[%clk 0:00:24]} 31. b4 {[%clk 0:01:15]}  Rc4 {[%clk 0:00:20]} 32. Rxa3 {[%clk 0:01:09]}  Rxb4 {[%clk 0:00:17]} 33. Rb3 {[%clk 0:01:05]}  Rc4 {[%clk 0:00:15]} 34. Re1 {[%clk 0:01:05]}  Kf7 {[%clk 0:00:14]} 35. Re2 {[%clk 0:01:01]}  h5 {[%clk 0:00:14]} 36. Rbe3 {[%clk 0:01:00]}  Nc8 {[%clk 0:00:11]} 37. d6 {[%clk 0:00:57]}  exd6 {[%clk 0:00:07]} 38. Bd5+ {[%clk 0:00:57]} 1-0


[Site "https://www.chess.com"]

[Event "Titled Tuesday Blitz June 21 Late 2022"]
[White "De La Colina, Nicolas"]
[Black "Estrada Nieto, Julian"]
[WhiteFideId "30946921"]
[BlackFideId "5101018"]
[WhiteElo "2046"]
[BlackElo "2252"]
[Result "1-0"]
[Round "10"]
[TimeControl "180+1"]
[Date "2022.06.22"]
[WhiteClock "0:00:27"]
[BlackClock "0:00:45"]

1. e4 {[%clk 0:03:00]}  e5 {[%clk 0:02:59]} 2. Nf3 {[%clk 0:03:00]}  Nc6 {[%clk 0:03:00]} 3. Bc4 {[%clk 0:02:59]}  Bc5 {[%clk 0:02:59]} 4. O-O {[%clk 0:02:59]}  d6 {[%clk 0:02:57]} 5. c3 {[%clk 0:02:59]}  Nf6 {[%clk 0:02:53]} 6. Re1 {[%clk 0:02:57]}  Bb6 {[%clk 0:02:48]} 7. d3 {[%clk 0:02:46]}  a6 {[%clk 0:02:43]} 8. Bb3 {[%clk 0:02:45]}  O-O {[%clk 0:02:40]} 9. Bg5 {[%clk 0:02:42]}  h6 {[%clk 0:02:40]} 10. Bh4 {[%clk 0:02:42]}  g5 {[%clk 0:02:38]} 11. Bg3 {[%clk 0:02:40]}  Bg4 {[%clk 0:02:36]} 12. Nbd2 {[%clk 0:02:34]}  Nh5 {[%clk 0:02:35]} 13. Nc4 {[%clk 0:02:27]}  Qf6 {[%clk 0:02:31]} 14. Ne3 {[%clk 0:02:09]}  Bxf3 {[%clk 0:02:29]} 15. Qxf3 {[%clk 0:02:01]}  Qxf3 {[%clk 0:02:29]} 16. gxf3 {[%clk 0:02:02]}  Ne7 {[%clk 0:02:27]} 17. Rad1 {[%clk 0:01:48]}  Kg7 {[%clk 0:02:25]} 18. d4 {[%clk 0:01:48]}  f6 {[%clk 0:02:24]} 19. Be6 {[%clk 0:01:41]}  Nf4 {[%clk 0:02:06]} 20. Bxf4 {[%clk 0:01:39]}  gxf4 {[%clk 0:02:06]} 21. Nc4 {[%clk 0:01:03]}  Ng6 {[%clk 0:02:05]} 22. Nxb6 {[%clk 0:01:01]}  cxb6 {[%clk 0:02:04]} 23. Kf1 {[%clk 0:00:58]}  Rad8 {[%clk 0:01:40]} 24. Ke2 {[%clk 0:00:56]}  Nh4 {[%clk 0:01:37]} 25. Rg1+ {[%clk 0:00:54]}  Kh7 {[%clk 0:01:36]} 26. Rg4 {[%clk 0:00:53]}  Rfe8 {[%clk 0:01:18]} 27. d5 {[%clk 0:00:51]}  Rxe6 {[%clk 0:01:07]} 28. dxe6 {[%clk 0:00:52]}  Ng6 {[%clk 0:01:05]} 29. Rdg1 {[%clk 0:00:53]}  Rg8 {[%clk 0:00:57]} 30. e7 {[%clk 0:00:30]}  Nxe7 {[%clk 0:00:56]} 31. Rxg8 {[%clk 0:00:30]}  Nxg8 {[%clk 0:00:56]} 32. Rd1 {[%clk 0:00:31]}  Kg7 {[%clk 0:00:49]} 33. Rxd6 {[%clk 0:00:31]}  Kf7 {[%clk 0:00:47]} 34. Rxb6 {[%clk 0:00:31]}  Ne7 {[%clk 0:00:46]} 35. Rxb7 {[%clk 0:00:31]}  Ke6 {[%clk 0:00:46]} 36. Rb6+ {[%clk 0:00:26]}  Kf7 {[%clk 0:00:46]} 37. Rxa6 {[%clk 0:00:26]}  h5 {[%clk 0:00:44]} 38. Ra7 {[%clk 0:00:26]}  Ke6 {[%clk 0:00:44]} 39. Rxe7+ {[%clk 0:00:26]}  Kxe7 {[%clk 0:00:44]} 40. Kd3 {[%clk 0:00:26]}  Kd6 {[%clk 0:00:45]} 41. Kc4 {[%clk 0:00:26]}  Kc6 {[%clk 0:00:45]} 42. a4 {[%clk 0:00:27]}  h4 {[%clk 0:00:45]} 43. b4 {[%clk 0:00:27]}  h3 {[%clk 0:00:45]} 44. a5 {[%clk 0:00:27]}  Kb7 {[%clk 0:00:45]} 45. b5 {[%clk 0:00:27]} 1-0


[Site "https://www.chess.com"]

[Event "Titled Tuesday Blitz June 21 Late 2022"]
[White "Deac, Bogdan-Daniel"]
[Black "Shimanov, Aleksandr"]
[WhiteFideId "1226380"]
[BlackFideId "4198603"]
[WhiteElo "2648"]
[BlackElo "2605"]
[Result "1-0"]
[Round "10"]
[TimeControl "180+1"]
[Date "2022.06.21"]
[WhiteClock "0:00:20"]
[BlackClock "0:00:02"]

1. d4 {[%clk 0:03:00]}  Nf6 {[%clk 0:02:59]} 2. c4 {[%clk 0:03:01]}  e6 {[%clk 0:03:00]} 3. Nf3 {[%clk 0:03:01]}  d5 {[%clk 0:03:00]} 4. g3 {[%clk 0:03:02]}  Nbd7 {[%clk 0:02:59]} 5. Bg2 {[%clk 0:03:00]}  c6 {[%clk 0:02:59]} 6. Qc2 {[%clk 0:02:58]}  Be7 {[%clk 0:02:55]} 7. O-O {[%clk 0:02:57]}  O-O {[%clk 0:02:55]} 8. Nbd2 {[%clk 0:02:57]}  b6 {[%clk 0:02:55]} 9. e4 {[%clk 0:02:57]}  dxc4 {[%clk 0:02:55]} 10. Nxc4 {[%clk 0:02:58]}  Bb7 {[%clk 0:02:55]} 11. Bf4 {[%clk 0:02:58]}  c5 {[%clk 0:02:53]} 12. Rfe1 {[%clk 0:02:59]}  cxd4 {[%clk 0:02:45]} 13. Nd6 {[%clk 0:02:59]}  Bxd6 {[%clk 0:02:37]} 14. Bxd6 {[%clk 0:03:00]}  d3 {[%clk 0:02:37]} 15. Qxd3 {[%clk 0:02:59]}  Bxe4 {[%clk 0:02:24]} 16. Qd4 {[%clk 0:02:57]}  e5 {[%clk 0:01:19]} 17. Qa4 {[%clk 0:02:56]}  Re8 {[%clk 0:00:55]} 18. Rad1 {[%clk 0:02:56]}  Bxf3 {[%clk 0:00:50]} 19. Bxf3 {[%clk 0:02:57]}  e4 {[%clk 0:00:51]} 20. Be2 {[%clk 0:02:56]}  a6 {[%clk 0:00:44]} 21. Bxa6 {[%clk 0:02:38]}  Nb8 {[%clk 0:00:35]} 22. Be5 {[%clk 0:02:37]}  Qe7 {[%clk 0:00:20]} 23. Bxf6 {[%clk 0:02:34]}  gxf6 {[%clk 0:00:20]} 24. Rxe4 {[%clk 0:02:30]}  Qxe4 {[%clk 0:00:19]} 25. Qxe4 {[%clk 0:02:31]}  Rxe4 {[%clk 0:00:18]} 26. Bb7 {[%clk 0:02:32]}  Rxa2 {[%clk 0:00:11]} 27. Rd8+ {[%clk 0:02:04]}  Kg7 {[%clk 0:00:11]} 28. Bxe4 {[%clk 0:02:04]}  Na6 {[%clk 0:00:11]} 29. Ra8 {[%clk 0:01:59]}  Nb4 {[%clk 0:00:11]} 30. Rxa2 {[%clk 0:01:49]}  Nxa2 {[%clk 0:00:12]} 31. Kf1 {[%clk 0:01:49]}  h6 {[%clk 0:00:11]} 32. Ke2 {[%clk 0:01:49]}  Nb4 {[%clk 0:00:11]} 33. Ke3 {[%clk 0:01:39]}  Kf8 {[%clk 0:00:11]} 34. Kd4 {[%clk 0:01:39]}  Ke7 {[%clk 0:00:11]} 35. Kc4 {[%clk 0:01:39]}  Na6 {[%clk 0:00:12]} 36. Kb5 {[%clk 0:01:39]}  Nc5 {[%clk 0:00:12]} 37. Bc2 {[%clk 0:01:28]}  Nd7 {[%clk 0:00:12]} 38. Bf5 {[%clk 0:01:28]}  Ne5 {[%clk 0:00:12]} 39. b4 {[%clk 0:01:18]}  Nf3 {[%clk 0:00:06]} 40. Kxb6 {[%clk 0:00:55]}  Kd6 {[%clk 0:00:06]} 41. b5 {[%clk 0:00:51]}  Nd4 {[%clk 0:00:06]} 42. Bd3 {[%clk 0:00:51]}  Ne6 {[%clk 0:00:06]} 43. Ka7 {[%clk 0:00:46]}  Nc5 {[%clk 0:00:05]} 44. b6 {[%clk 0:00:43]}  Ke5 {[%clk 0:00:02]} 45. b7 {[%clk 0:00:38]}  Nxb7 {[%clk 0:00:02]} 46. Kxb7 {[%clk 0:00:38]}  f5 {[%clk 0:00:03]} 47. Kc6 {[%clk 0:00:28]}  f4 {[%clk 0:00:03]} 48. Kc5 {[%clk 0:00:28]}  fxg3 {[%clk 0:00:03]} 49. hxg3 {[%clk 0:00:28]}  Kf6 {[%clk 0:00:02]} 50. f4 {[%clk 0:00:26]}  Ke6 {[%clk 0:00:03]} 51. Kd4 {[%clk 0:00:24]}  Kd6 {[%clk 0:00:03]} 52. Bf5 {[%clk 0:00:23]}  f6 {[%clk 0:00:01]} 53. Ke4 {[%clk 0:00:21]}  Ke7 {[%clk 0:00:02]} 54. Kd5 {[%clk 0:00:21]}  h5 {[%clk 0:00:02]} 55. Kc6 {[%clk 0:00:20]} 1-0


[Site "https://www.chess.com"]

[Event "Titled Tuesday Blitz June 21 Late 2022"]
[White "Desideri, Ricardo Maruchi"]
[Black "Khan, Taffin"]
[WhiteFideId "2110440"]
[BlackFideId "19700024"]
[WhiteElo "1945"]
[BlackElo "1957"]
[Result "0-1"]
[Round "10"]
[TimeControl "180+1"]
[Date "2022.06.22"]
[WhiteClock "0:00:08"]
[BlackClock "0:01:01"]

1. e4 {[%clk 0:02:59]}  c5 {[%clk 0:02:55]} 2. Nf3 {[%clk 0:02:58]}  a6 {[%clk 0:02:55]} 3. c4 {[%clk 0:02:55]}  Nc6 {[%clk 0:02:48]} 4. d4 {[%clk 0:02:53]}  cxd4 {[%clk 0:02:47]} 5. Nxd4 {[%clk 0:02:53]}  e6 {[%clk 0:02:45]} 6. Be3 {[%clk 0:02:52]}  Nf6 {[%clk 0:02:43]} 7. Nc3 {[%clk 0:02:52]}  Bb4 {[%clk 0:02:41]} 8. f3 {[%clk 0:02:48]}  O-O {[%clk 0:02:29]} 9. Be2 {[%clk 0:02:48]}  d5 {[%clk 0:02:25]} 10. cxd5 {[%clk 0:02:32]}  exd5 {[%clk 0:02:24]} 11. Nxc6 {[%clk 0:02:25]}  bxc6 {[%clk 0:02:22]} 12. Bg5 {[%clk 0:02:16]}  dxe4 {[%clk 0:02:09]} 13. Qxd8 {[%clk 0:02:11]}  Rxd8 {[%clk 0:02:08]} 14. fxe4 {[%clk 0:02:10]}  Re8 {[%clk 0:01:46]} 15. Bxf6 {[%clk 0:02:06]}  gxf6 {[%clk 0:01:45]} 16. O-O {[%clk 0:02:05]}  Bxc3 {[%clk 0:01:43]} 17. bxc3 {[%clk 0:02:05]}  Rxe4 {[%clk 0:01:42]} 18. Bf3 {[%clk 0:01:46]}  Rc4 {[%clk 0:01:40]} 19. Rad1 {[%clk 0:01:33]}  Be6 {[%clk 0:01:40]} 20. Rd3 {[%clk 0:01:23]}  Rb8 {[%clk 0:01:38]} 21. Rfd1 {[%clk 0:01:21]}  Rb2 {[%clk 0:01:36]} 22. Rd8+ {[%clk 0:00:46]}  Kg7 {[%clk 0:01:35]} 23. a4 {[%clk 0:00:34]}  Rxc3 {[%clk 0:01:34]} 24. Ra8 {[%clk 0:00:29]}  Bb3 {[%clk 0:01:28]} 25. Ra1 {[%clk 0:00:26]}  Bc4 {[%clk 0:01:25]} 26. a5 {[%clk 0:00:24]}  Bb5 {[%clk 0:01:24]} 27. Ra7 {[%clk 0:00:21]}  Rcc2 {[%clk 0:01:17]} 28. Re1 {[%clk 0:00:19]}  Bc4 {[%clk 0:01:05]} 29. h3 {[%clk 0:00:20]}  Bd5 {[%clk 0:01:04]} 30. Bxd5 {[%clk 0:00:13]}  cxd5 {[%clk 0:01:04]} 31. Ree7 {[%clk 0:00:10]}  Rxg2+ {[%clk 0:01:04]} 32. Kf1 {[%clk 0:00:10]}  Rgf2+ {[%clk 0:01:04]} 33. Ke1 {[%clk 0:00:10]}  Rh2 {[%clk 0:01:01]} 34. Rxf7+ {[%clk 0:00:10]}  Kg6 {[%clk 0:01:02]} 35. Rg7+ {[%clk 0:00:08]}  Kf5 {[%clk 0:01:01]} 0-1


[Site "https://www.chess.com"]

[Event "Titled Tuesday Blitz June 21 Late 2022"]
[White "Dilmukhametov, Artur"]
[Black "Vivas Zamora, Fabian Ernesto"]
[WhiteFideId "24179922"]
[BlackFideId "3902480"]
[WhiteElo "2206"]
[BlackElo "2014"]
[Result "1-0"]
[Round "10"]
[TimeControl "180+1"]
[Date "2022.06.22"]
[WhiteClock "0:01:34"]
[BlackClock "0:00:01"]

1. e4 {[%clk 0:02:54]}  e5 {[%clk 0:02:59]} 2. Nf3 {[%clk 0:02:54]}  Nc6 {[%clk 0:03:00]} 3. Bb5 {[%clk 0:02:54]}  f5 {[%clk 0:02:59]} 4. Nc3 {[%clk 0:02:53]}  fxe4 {[%clk 0:03:00]} 5. Nxe4 {[%clk 0:02:54]}  Nf6 {[%clk 0:03:00]} 6. Nxf6+ {[%clk 0:02:54]}  Qxf6 {[%clk 0:03:01]} 7. d4 {[%clk 0:02:51]}  Nxd4 {[%clk 0:02:52]} 8. Nxd4 {[%clk 0:02:50]}  exd4 {[%clk 0:02:53]} 9. O-O {[%clk 0:02:37]}  Be7 {[%clk 0:02:52]} 10. Bd3 {[%clk 0:02:30]}  O-O {[%clk 0:02:48]} 11. Qh5 {[%clk 0:02:31]}  g6 {[%clk 0:02:47]} 12. Qe2 {[%clk 0:02:31]}  d5 {[%clk 0:02:43]} 13. Bh6 {[%clk 0:02:31]}  Re8 {[%clk 0:02:30]} 14. f4 {[%clk 0:02:29]}  Bf5 {[%clk 0:02:18]} 15. Qf3 {[%clk 0:02:28]}  Bxd3 {[%clk 0:02:10]} 16. Qxd5+ {[%clk 0:02:27]}  Qf7 {[%clk 0:02:08]} 17. Qxf7+ {[%clk 0:02:27]}  Kxf7 {[%clk 0:02:09]} 18. cxd3 {[%clk 0:02:28]}  Bf6 {[%clk 0:02:01]} 19. Rae1 {[%clk 0:02:26]}  Re3 {[%clk 0:01:47]} 20. Rxe3 {[%clk 0:02:16]}  dxe3 {[%clk 0:01:47]} 21. f5 {[%clk 0:02:17]}  e2 {[%clk 0:01:42]} 22. Rb1 {[%clk 0:02:08]}  Bd4+ {[%clk 0:01:40]} 23. Kh1 {[%clk 0:02:08]}  gxf5 {[%clk 0:01:33]} 24. Bd2 {[%clk 0:02:09]}  Bf2 {[%clk 0:01:30]} 25. g3 {[%clk 0:02:07]}  Re8 {[%clk 0:01:29]} 26. Be1 {[%clk 0:02:08]}  Bxe1 {[%clk 0:01:13]} 27. Rxe1 {[%clk 0:02:09]}  Re3 {[%clk 0:00:29]} 28. Kg2 {[%clk 0:02:08]}  h5 {[%clk 0:00:20]} 29. d4 {[%clk 0:02:04]}  Ke6 {[%clk 0:00:19]} 30. Kf2 {[%clk 0:02:04]}  Re4 {[%clk 0:00:17]} 31. Rxe2 {[%clk 0:02:02]}  Kd5 {[%clk 0:00:17]} 32. Rc2 {[%clk 0:02:01]}  Rxd4 {[%clk 0:00:07]} 33. Rxc7 {[%clk 0:01:57]}  Rd2+ {[%clk 0:00:05]} 34. Ke3 {[%clk 0:01:57]}  Rxb2 {[%clk 0:00:05]} 35. h4 {[%clk 0:01:58]}  Kd6 {[%clk 0:00:03]} 36. Rh7 {[%clk 0:01:56]}  Rxa2 {[%clk 0:00:03]} 37. Rxb7 {[%clk 0:01:54]}  Ra4 {[%clk 0:00:02]} 38. Rh7 {[%clk 0:01:53]}  Ke5 {[%clk 0:00:03]} 39. Rxh5 {[%clk 0:01:53]}  Ra3+ {[%clk 0:00:03]} 40. Kf2 {[%clk 0:01:53]}  Ke4 {[%clk 0:00:04]} 41. Kg2 {[%clk 0:01:53]}  Ra2+ {[%clk 0:00:03]} 42. Kh3 {[%clk 0:01:54]}  a5 {[%clk 0:00:04]} 43. Rh8 {[%clk 0:01:53]}  Kf3 {[%clk 0:00:04]} 44. Rf8 {[%clk 0:01:52]}  Ke4 {[%clk 0:00:04]} 45. Re8+ {[%clk 0:01:53]}  Kd4 {[%clk 0:00:04]} 46. h5 {[%clk 0:01:51]}  Ra1 {[%clk 0:00:04]} 47. Kg2 {[%clk 0:01:51]}  a4 {[%clk 0:00:03]} 48. h6 {[%clk 0:01:51]}  Ra2+ {[%clk 0:00:03]} 49. Kh3 {[%clk 0:01:51]}  Ra1 {[%clk 0:00:03]} 50. Re2 {[%clk 0:01:39]}  Rh1+ {[%clk 0:00:02]} 51. Rh2 {[%clk 0:01:39]}  Re1 {[%clk 0:00:03]} 52. h7 {[%clk 0:01:38]}  Re8 {[%clk 0:00:04]} 53. Kh4 {[%clk 0:01:38]}  Rh8 {[%clk 0:00:04]} 54. Kg5 {[%clk 0:01:39]}  a3 {[%clk 0:00:04]} 55. Kg6 {[%clk 0:01:39]}  Kc3 {[%clk 0:00:04]} 56. Kg7 {[%clk 0:01:35]}  Ra8 {[%clk 0:00:04]} 57. h8=Q {[%clk 0:01:34]}  Rxh8 {[%clk 0:00:04]} 58. Kxh8 {[%clk 0:01:34]}  Kd3 {[%clk 0:00:01]} 59. Ra2 {[%clk 0:01:34]} 1-0


[Site "https://www.chess.com"]

[Event "Titled Tuesday Blitz June 21 Late 2022"]
[White "Florescu, Codrut-Constantin"]
[Black "Peatman, Carter"]
[WhiteFideId "1202200"]
[BlackFideId "2096480"]
[WhiteElo "2191"]
[BlackElo "2490"]
[Result "1-0"]
[Round "10"]
[TimeControl "180+1"]
[Date "2022.06.21"]
[WhiteClock "0:00:43"]
[BlackClock "0:00:05"]

1. d4 {[%clk 0:03:00]}  d5 {[%clk 0:02:58]} 2. Nf3 {[%clk 0:03:00]}  e6 {[%clk 0:02:53]} 3. c4 {[%clk 0:03:01]}  c5 {[%clk 0:02:52]} 4. e3 {[%clk 0:03:00]}  Nf6 {[%clk 0:02:51]} 5. Nc3 {[%clk 0:03:00]}  a6 {[%clk 0:02:49]} 6. a3 {[%clk 0:02:59]}  dxc4 {[%clk 0:02:47]} 7. Bxc4 {[%clk 0:02:59]}  cxd4 {[%clk 0:02:47]} 8. exd4 {[%clk 0:02:58]}  Be7 {[%clk 0:02:36]} 9. O-O {[%clk 0:02:56]}  O-O {[%clk 0:02:33]} 10. Bg5 {[%clk 0:02:55]}  b5 {[%clk 0:02:29]} 11. Bd3 {[%clk 0:02:54]}  Bb7 {[%clk 0:02:28]} 12. Qc2 {[%clk 0:02:53]}  h6 {[%clk 0:02:26]} 13. Bxf6 {[%clk 0:02:47]}  Bxf6 {[%clk 0:02:27]} 14. Be4 {[%clk 0:02:46]}  Nc6 {[%clk 0:02:04]} 15. Rad1 {[%clk 0:02:45]}  Qb6 {[%clk 0:02:00]} 16. d5 {[%clk 0:02:41]}  Na5 {[%clk 0:01:46]} 17. dxe6 {[%clk 0:02:35]}  Qxe6 {[%clk 0:01:43]} 18. Nd5 {[%clk 0:02:19]}  Rac8 {[%clk 0:01:21]} 19. Qb1 {[%clk 0:02:11]}  Rfd8 {[%clk 0:00:54]} 20. Bf5 {[%clk 0:02:10]}  Qc6 {[%clk 0:00:37]} 21. Bxc8 {[%clk 0:02:02]}  Rxc8 {[%clk 0:00:36]} 22. Nxf6+ {[%clk 0:02:01]}  Qxf6 {[%clk 0:00:36]} 23. Nd4 {[%clk 0:01:48]}  Nc4 {[%clk 0:00:34]} 24. b3 {[%clk 0:01:40]}  Ne5 {[%clk 0:00:24]} 25. Qf5 {[%clk 0:01:36]}  Qe7 {[%clk 0:00:20]} 26. Rfe1 {[%clk 0:01:32]}  Rc5 {[%clk 0:00:18]} 27. Qf4 {[%clk 0:01:12]}  Rd5 {[%clk 0:00:13]} 28. Nf5 {[%clk 0:01:07]}  Nf3+ {[%clk 0:00:05]} 29. gxf3 {[%clk 0:01:00]}  Rxf5 {[%clk 0:00:03]} 30. Rxe7 {[%clk 0:00:58]}  Rxf4 {[%clk 0:00:03]} 31. Rxb7 {[%clk 0:00:58]}  Rxf3 {[%clk 0:00:02]} 32. Rd8+ {[%clk 0:00:51]}  Kh7 {[%clk 0:00:02]} 33. Rdd7 {[%clk 0:00:51]}  Kg6 {[%clk 0:00:03]} 34. Rb6+ {[%clk 0:00:50]}  f6 {[%clk 0:00:03]} 35. Rbb7 {[%clk 0:00:50]}  Kf5 {[%clk 0:00:04]} 36. Rxg7 {[%clk 0:00:49]}  Rxb3 {[%clk 0:00:05]} 37. Rg3 {[%clk 0:00:49]}  Rb2 {[%clk 0:00:04]} 38. Rb6 {[%clk 0:00:48]}  a5 {[%clk 0:00:03]} 39. Rf3+ {[%clk 0:00:46]}  Ke5 {[%clk 0:00:03]} 40. Rbxf6 {[%clk 0:00:47]}  b4 {[%clk 0:00:03]} 41. R6f5+ {[%clk 0:00:47]}  Ke4 {[%clk 0:00:04]} 42. R5f4+ {[%clk 0:00:46]}  Ke5 {[%clk 0:00:04]} 43. Rh4 {[%clk 0:00:46]}  a4 {[%clk 0:00:05]} 44. Rxb4 {[%clk 0:00:44]}  Ra2 {[%clk 0:00:05]} 45. Rxa4 {[%clk 0:00:44]}  Ra1+ {[%clk 0:00:05]} 46. Kg2 {[%clk 0:00:44]}  Ra2 {[%clk 0:00:06]} 47. Rb3 {[%clk 0:00:43]}  Rb2 {[%clk 0:00:05]} 48. Rxb2 {[%clk 0:00:43]} 1-0


[Site "https://www.chess.com"]

[Event "Titled Tuesday Blitz June 21 Late 2022"]
[White "Gallegos Diaz, Carlos Alberto"]
[Black "Stanisz, Patryk"]
[WhiteFideId "3900886"]
[BlackFideId "1123106"]
[WhiteElo "2362"]
[BlackElo "1833"]
[Result "1-0"]
[Round "10"]
[TimeControl "180+1"]
[Date "2022.06.22"]
[WhiteClock "0:00:07"]
[BlackClock "0:00:04"]

1. e4 {[%clk 0:03:00]}  c5 {[%clk 0:02:57]} 2. Nf3 {[%clk 0:03:00]}  Nc6 {[%clk 0:02:57]} 3. Bb5 {[%clk 0:02:59]}  g6 {[%clk 0:02:57]} 4. O-O {[%clk 0:02:59]}  Bg7 {[%clk 0:02:56]} 5. Re1 {[%clk 0:02:58]}  Nf6 {[%clk 0:02:56]} 6. c3 {[%clk 0:02:56]}  O-O {[%clk 0:02:56]} 7. e5 {[%clk 0:02:56]}  Nd5 {[%clk 0:02:56]} 8. d4 {[%clk 0:02:55]}  cxd4 {[%clk 0:02:51]} 9. cxd4 {[%clk 0:02:54]}  Nc7 {[%clk 0:02:47]} 10. Ba4 {[%clk 0:02:36]}  d5 {[%clk 0:02:27]} 11. h3 {[%clk 0:02:35]}  Bf5 {[%clk 0:02:11]} 12. Nc3 {[%clk 0:02:30]}  Rb8 {[%clk 0:01:51]} 13. Bg5 {[%clk 0:02:10]}  b5 {[%clk 0:01:50]} 14. Bb3 {[%clk 0:02:00]}  a5 {[%clk 0:01:47]} 15. Rc1 {[%clk 0:01:23]}  Qd7 {[%clk 0:01:42]} 16. a3 {[%clk 0:01:03]}  b4 {[%clk 0:01:28]} 17. Na4 {[%clk 0:01:00]}  Ne6 {[%clk 0:01:17]} 18. Nc5 {[%clk 0:00:57]}  Nxc5 {[%clk 0:01:17]} 19. Rxc5 {[%clk 0:00:57]}  bxa3 {[%clk 0:01:14]} 20. bxa3 {[%clk 0:00:51]}  Be4 {[%clk 0:01:09]} 21. Ba4 {[%clk 0:00:48]}  Rfc8 {[%clk 0:01:08]} 22. Qc1 {[%clk 0:00:33]}  Rb6 {[%clk 0:01:06]} 23. Qc3 {[%clk 0:00:27]}  Bxf3 {[%clk 0:00:41]} 24. gxf3 {[%clk 0:00:27]}  Qf5 {[%clk 0:00:27]} 25. h4 {[%clk 0:00:21]}  h6 {[%clk 0:00:21]} 26. Be3 {[%clk 0:00:17]}  Na7 {[%clk 0:00:11]} 27. Qxa5 {[%clk 0:00:08]}  Rxc5 {[%clk 0:00:06]} 28. dxc5 {[%clk 0:00:08]}  Rb1 {[%clk 0:00:04]} 29. Rxb1 {[%clk 0:00:06]}  Qxb1+ {[%clk 0:00:05]} 30. Kg2 {[%clk 0:00:06]}  Bxe5 {[%clk 0:00:06]} 31. Qxa7 {[%clk 0:00:05]}  Qf5 {[%clk 0:00:04]} 32. Qa8+ {[%clk 0:00:05]}  Kg7 {[%clk 0:00:04]} 33. Qxd5 {[%clk 0:00:05]}  g5 {[%clk 0:00:02]} 34. Qe4 {[%clk 0:00:05]}  Qf6 {[%clk 0:00:01]} 35. hxg5 {[%clk 0:00:05]}  hxg5 {[%clk 0:00:02]} 36. Qg4 {[%clk 0:00:05]}  Bf4 {[%clk 0:00:01]} 37. Bxf4 {[%clk 0:00:05]}  Qxf4 {[%clk 0:00:02]} 38. Qxf4 {[%clk 0:00:05]}  gxf4 {[%clk 0:00:03]} 39. c6 {[%clk 0:00:06]}  Kf6 {[%clk 0:00:04]} 40. c7 {[%clk 0:00:06]}  Ke5 {[%clk 0:00:05]} 41. c8=Q {[%clk 0:00:07]}  f5 {[%clk 0:00:05]} 42. Qf8 {[%clk 0:00:07]}  e6 {[%clk 0:00:05]} 43. Qg7+ {[%clk 0:00:08]}  Kd6 {[%clk 0:00:05]} 44. Bd7 {[%clk 0:00:09]}  Kc5 {[%clk 0:00:03]} 45. Bxe6 {[%clk 0:00:09]}  Kb5 {[%clk 0:00:02]} 46. Bxf5 {[%clk 0:00:09]}  Ka5 {[%clk 0:00:03]} 47. Qb2 {[%clk 0:00:08]}  Ka6 {[%clk 0:00:03]} 48. Bd7 {[%clk 0:00:07]}  Ka7 {[%clk 0:00:03]} 49. Bc6 {[%clk 0:00:06]}  Ka6 {[%clk 0:00:04]} 50. Qb5+ {[%clk 0:00:06]}  Ka7 {[%clk 0:00:04]} 51. Qb7# {[%clk 0:00:07]} 1-0


[Site "https://www.chess.com"]

[Event "Titled Tuesday Blitz June 21 Late 2022"]
[White "Gimenez Aguirre, Alejo Ismael"]
[Black "Isajevsky, Anton"]
[WhiteFideId "32041667"]
[BlackFideId "4142500"]
[WhiteElo "2464"]
[BlackElo "2572"]
[Result "1-0"]
[Round "10"]
[TimeControl "180+1"]
[Date "2022.06.22"]
[WhiteClock "0:01:09"]
[BlackClock "0:00:01"]

1. e4 {[%clk 0:03:00]}  g6 {[%clk 0:02:58]} 2. d4 {[%clk 0:03:00]}  Bg7 {[%clk 0:02:58]} 3. Nc3 {[%clk 0:03:01]}  a6 {[%clk 0:02:57]} 4. Be3 {[%clk 0:03:01]}  b5 {[%clk 0:02:57]} 5. a4 {[%clk 0:03:00]}  b4 {[%clk 0:02:56]} 6. Nce2 {[%clk 0:03:01]}  Bb7 {[%clk 0:02:55]} 7. f3 {[%clk 0:03:01]}  d6 {[%clk 0:02:50]} 8. a5 {[%clk 0:03:00]}  Nd7 {[%clk 0:02:49]} 9. Qd2 {[%clk 0:02:59]}  c5 {[%clk 0:02:48]} 10. Nh3 {[%clk 0:02:59]}  Ngf6 {[%clk 0:02:39]} 11. Nf2 {[%clk 0:02:57]}  O-O {[%clk 0:02:30]} 12. g4 {[%clk 0:02:55]}  cxd4 {[%clk 0:01:39]} 13. Nxd4 {[%clk 0:02:53]}  d5 {[%clk 0:01:39]} 14. g5 {[%clk 0:02:51]}  Nh5 {[%clk 0:01:35]} 15. Qxb4 {[%clk 0:02:48]}  Rb8 {[%clk 0:01:33]} 16. Qd2 {[%clk 0:02:45]}  e5 {[%clk 0:01:30]} 17. Nb3 {[%clk 0:02:38]}  d4 {[%clk 0:01:29]} 18. O-O-O {[%clk 0:02:34]}  dxe3 {[%clk 0:01:27]} 19. Qxe3 {[%clk 0:02:31]}  Qc7 {[%clk 0:01:21]} 20. h4 {[%clk 0:02:29]}  Rfc8 {[%clk 0:01:18]} 21. Rd2 {[%clk 0:02:28]}  Nf4 {[%clk 0:01:06]} 22. Ng4 {[%clk 0:02:12]}  Rd8 {[%clk 0:00:30]} 23. Be2 {[%clk 0:02:05]}  Nf8 {[%clk 0:00:28]} 24. Rhd1 {[%clk 0:01:52]}  N8e6 {[%clk 0:00:28]} 25. Bf1 {[%clk 0:01:47]}  Rxd2 {[%clk 0:00:24]} 26. Rxd2 {[%clk 0:01:46]}  Nd4 {[%clk 0:00:15]} 27. Nxd4 {[%clk 0:01:35]}  exd4 {[%clk 0:00:16]} 28. Qa3 {[%clk 0:01:29]}  Bc8 {[%clk 0:00:12]} 29. Nf6+ {[%clk 0:01:28]}  Bxf6 {[%clk 0:00:12]} 30. gxf6 {[%clk 0:01:29]}  Qe5 {[%clk 0:00:08]} 31. c3 {[%clk 0:01:18]}  Qxf6 {[%clk 0:00:06]} 32. Rxd4 {[%clk 0:01:19]}  Ne6 {[%clk 0:00:04]} 33. Qd6 {[%clk 0:01:17]}  Ra8 {[%clk 0:00:03]} 34. e5 {[%clk 0:01:13]}  Qxf3 {[%clk 0:00:01]} 35. Bc4 {[%clk 0:01:09]} 1-0


[Site "https://www.chess.com"]